[Event "88th Tata Steel Masters 2026"]
[White "Aravindh,Chithambaram VR."]
[Black "Erigaisi Arjun"]
[Site "Wijk aan Zee"]
[Round "8.1"]
[Annotator "TA"]
[Result "1/2-1/2"]
[Date "2026.01.25"]
[WhiteElo "2700"]
[BlackElo "2775"]
[PlyCount "152"]
[TimeControl "60"]

{[%evp 9,152,-1,40,47,43,35,42,37,42,49,40,27,47,43,42,51,46,56,52,38,49,51,68,39,42,42,40,48,58,48,46,42,64,65,80,77,56,40,99,119,107,107,125,106,118,83,118,112,107,116,103,90,107,20,12,-59,-41,-49,-35,-54,-54,-63,-35,-50,-23,-36,-17,-25,-23,-85,-77,-97,-56,-58,-64,-54,-52,-67,-61,-57,-39,-39,-41,-104,-84,-159,-89,-106,-2,-22,-1,-41,-41,-41,-42,-42,-42,-42,-42,-42,-42,-42,-42,-42,-42,-42,-20,-20,-10,-20,-20,-20,-20,-20,-20,-20,-20,-20,-20,-20,-20,-20,-20,-20,-16,-20,-20,-20,-20,-22,-26,-77,-20,-20,-20,-22,-20,-20,-20,-20,-14,-14,0,0,0]} 1. e4 {[%emt 0:0:0]} c5 {[%emt 0:0:0]} 2. Nf3 {[%emt 0:0:0]} e6 {[%emt 0:0:0][%cal Ye7e6,Ye6e5][%mdl 32]} 3. d4 {[%emt 0:0:0]} cxd4 {[%emt 0:0:0]} 4. Nxd4 {[%emt 0:0:0]} Nc6 {[%emt 0:0:0]} 5. Nb5 {[%emt 0:0:0]} Nf6 {[%emt 0:0:0]} 6. Bf4 {[%emt 0:0:0] B44: Sicilian: Taimanov: 5 Nb5.} e5 {[%emt 0:0:0]} 7. Bg5 {[%emt 0:0:0]} Bc5 {[%emt 0:0:0]} 8. N1c3 {[%emt 0:0:0] aiming for Nd5. White is slightly better.} d6 {[%emt 0:0:0]} 9. Bxf6 {[%emt 0:2:50]} Qxf6 {[%emt 0:0:0][%csl Gc5][%cal Rf6f2]} 10. Nc7+ {[%emt 0:0:49]} Kd8 {[%emt 0:0:0][%csl Gc5][%cal Rf6f2]} 11. f3 {[%emt 0:1:4]} Rb8 {[%emt 0:0:0] [#] A sharp opening} 12. Qd2 $1 {[%emt 0:2:18] Inhibits Qh6.} h5 {[%emt 0:0:0]} 13. N7d5 {[%emt 0:1:32]} Qh6 {[%emt 0:0:0]} 14. f4 {[%emt 0:1:38]} exf4 {[%emt 0:0:0]} 15. O-O-O {[%emt 0:1:14] White sacrificed a pawn} Bd4 {[%emt 0:14:31]} 16. Ne2 {[%emt 0:12:32]} Be5 {[%emt 0:2:13]} 17. Nexf4 {[%emt 0:0:58] Strong Square White (d5)} Bg4 {[%emt 0:11:26]} 18. Re1 $146 {[%emt 0:7:25]} ({Predecessor:} 18. Be2 Bxe2 19. Nxe2 Qxd2+ 20. Rxd2 Ne7 21. Ne3 Ke8 22. a4 Rh6 23. g3 Rf6 24. Rhd1 Nc6 25. Nc3 Bxc3 26. bxc3 {½-½ Wittlieb,F (1879)-Just,J (2047) GER DSF C26 f email rapid 2024} )Be6 {[%emt 0:2:43]} 19. g3 {[%emt 0:5:46]} h4 {[%emt 0:3:58]} 20. Rg1 {[%emt 0:9:35]} Bd4 {[%emt 0:8:58]} 21. Rg2 {[%emt 0:4:6]} h3 {[%emt 0:8:32]} 22. Rge2 {[%emt 0:4:49]} Bg4 {[%emt 0:0:37]} 23. Re3 {[%emt 0:6:50]} g5 {[%emt 0:3:47] [#]} (23... Bxe3 $14 24. Nxe3 Bc8 )24. Ne2 $1 $16 {[%emt 0:14:3][%cal Yf4e2,Ye2c3,Yc3e4][%mdl 32] Excellent horsemanship.} Bxe3 {[%emt 0:1:15]} 25. Nxe3 {[%emt 0:0:59]} Bd7 {[%emt 0:3:47]} 26. Nc3 {[%emt 0:2:8][%mdl 1024] White has strong compensation.} g4 {[%emt 0:17:5]} 27. Be2 {[%emt 0:0:47]} (27. Nb5 Ke7 $11 )(27. Bb5 {keeps more tension.} Rc8 28. Rf1 Ne5 29. Bxd7 Kxd7 30. Ncd5 )Re8 {[%emt 0:4:25][%cal Yd6d5]} 28. Rf1 {[%emt 0:1:50]} f5 {[%emt 0:5:35]} 29. Rf4 {[%emt 0:5:4]} (29. Nxf5 Qxd2+ 30. Kxd2 Bxf5 31. exf5 Ne5 $16 )fxe4 {[%emt 0:1:19]} 30. Nxe4 {[%emt 0:5:4]} (30. Bxg4 $6 Bxg4 31. Nxg4 Qe6 $14 )Rf8 {[%emt 0:0:58]} 31. Nxg4 {[%emt 0:7:55] White has more active pieces.} (31. Bxg4 $2 Rxf4 32. gxf4 Qxf4 33. Bxd7 Kxd7 (33... Qxe4 34. Bxh3 Qg6 35. b3 $11 )34. Nc5+ Kc8 $19 )(31. Rxf8+ $16 Qxf8 32. Nd5 )Bxg4 $11 {[%emt 0:2:29]} 32. Rxg4 {[%emt 0:12:2]} (32. Rxf8+ $11 Qxf8 33. Bxg4 )Qxd2+ $15 {[%emt 0:1:8]} 33. Kxd2 {[%emt 0:0:34][%cal Yg4g7]} Kc7 {[%emt 0:2:51]} 34. Nc3 {[%emt 0:1:34]} Rbe8 {[%emt 0:1:59]} 35. Nd5+ {[%emt 0:0:39]} Kb8 {[%emt 0:1:26]} 36. Rf4 {[%emt 0:0:34]} Rh8 {[%emt 0:2:38]} 37. c4 {[%emt 0:0:43]} Re5 {[%emt 0:1:22]} 38. Bd3 {[%emt 0:0:55]} Rg5 {[%emt 0:1:37]} 39. Nf6 {[%emt 0:1:4]} (39. Ne3 $11 )Ne5 $17 {[%emt 0:1:55]} 40. Ne4 {[%emt 0:0:0][%csl Yd6,Yg5]} Nxd3 {[%emt 0:0:0]} 41. Kxd3 {[%emt 0:20:57][%mdl 4096] Endgame KRR-KRN} Ra5 {[%emt 0:29:20]} 42. Nc3 {[%emt 0:2:55]} Re5 {[%emt 0:0:29]} 43. Kd2 {[%emt 0:1:7] Dodges Re1} a6 {[%emt 0:3:5]} 44. a4 {[%emt 0:1:21]} a5 {[%emt 0:7:17]} 45. b3 {[%emt 0:0:43]} Ka7 {[%emt 0:1:41]} 46. Rf7 {[%emt 0:2:48]} ({White should play} 46. Rf3 $15 )Ree8 {[%emt 0:1:44]} 47. Rf5 {[%emt 0:4:9]} (47. Nd5 $142 )Ka6 {[%emt 0:3:28]} (47... Rhf8 $142 48. Rxa5+ Kb8 )48. Nd5 {[%emt 0:1:32]} Re4 {[%emt 0:4:56]} ({Better is} 48... Rhf8 $17 49. g4 Rxf5 50. gxf5 Ka7 )49. Rf6 {[%emt 0:2:49]} Ka7 {[%emt 0:1:3]} 50. Rxd6 {[%emt 0:1:31]} Rg4 {[%emt 0:4:46]} 51. Rf6 {[%emt 0:3:0]} Rxg3 {[%emt 0:0:12]} 52. hxg3 $15 {[%emt 0:0:7] KRN-KR} h2 {[%emt 0:0:2]} 53. Rf1 {[%emt 0:0:6]} h1=Q {[%emt 0:0:4]} 54. Rxh1 {[%emt 0:0:6]} Rxh1 {[%emt 0:0:3] KR-KN} 55. Kc3 {[%emt 0:3:32]} Rg1 {[%emt 0:1:20]} 56. c5 {[%emt 0:0:15]} Rxg3+ {[%emt 0:0:7]} 57. Kc4 {[%emt 0:0:5]} Rg4+ {[%emt 0:0:52]} 58. Kb5 {[%emt 0:1:22]} Rd4 {[%emt 0:0:11]} 59. Nb6 {[%emt 0:2:4]} Rb4+ {[%emt 0:0:6]} 60. Kxa5 {[%emt 0:0:5]} Rxb3 {[%emt 0:0:5]} 61. Nc8+ {[%emt 0:15:20]} Kb8 {[%emt 0:15:6]} 62. Nd6 {[%emt 0:0:4]} Rb1 {[%emt 0:0:31]} 63. Nb5 {[%emt 0:0:6]} Ra1 {[%emt 0:0:34]} 64. Kb4 {[%emt 0:2:47]} Kc8 {[%emt 0:0:15]} 65. Nd4 {[%emt 0:0:53]} Kc7 {[%emt 0:0:49]} 66. Kb5 {[%emt 0:0:9]} Rd1 {[%emt 0:0:12]} 67. Kc4 {[%emt 0:0:18]} Rh1 {[%emt 0:0:12]} 68. Ne6+ {[%emt 0:1:12]} Kb8 {[%emt 0:1:2]} 69. Nd4 {[%emt 0:0:15]} Rh4 {[%emt 0:0:13]} 70. Kd5 {[%emt 0:0:15]} Ka7 {[%emt 0:0:17]} (70... Kc7 $17 )71. a5 {[%emt 0:1:43] The position is equal.} Rh5+ {[%emt 0:0:27]} 72. Kd6 {[%emt 0:0:7]} Ka6 {[%emt 0:0:11]} 73. c6 {[%emt 0:0:19]} bxc6 {[%emt 0:0:9]} 74. Nxc6 {[%emt 0:0:6]} Rh6+ {[%emt 0:0:3]} 75. Kc5 {[%emt 0:0:5]} Rxc6+ {[%emt 0:0:4]} 76. Kxc6 {[%emt 0:0:4]} Kxa5 {[%emt 0:0:4] Weighted Error Value: White=0.14 (very precise) /Black=0.13 (very precise)   Mistake:       	White=5     	Black=4      Inaccurate:     	White=3     	Black=4      OK:         	White=9     	Black=6      Best:        	White=1     	Black=2      Strong:       	White=1     	---} 1/2-1/2

[Event "88th Tata Steel Masters 2026"]
[White "Fedoseev,Vladimir"]
[Black "Gukesh D"]
[Site "Wijk aan Zee"]
[Round "8.2"]
[Annotator "TA"]
[Result "0-1"]
[Date "2026.01.25"]
[WhiteElo "2705"]
[BlackElo "2754"]
[PlyCount "81"]
[TimeControl "60"]

{[%evp 11,81,1,0,0,7,12,0,0,14,10,14,9,10,0,26,-33,-13,-3,0,-2,3,2,2,-8,11,11,12,5,2,13,6,6,4,4,4,5,10,0,0,-39,-38,-31,-33,-33,0,0,0,0,0,0,0,-7,-7,-164,-146,-168,-166,-147,-28,-74,-73,-73,-32,-54,-48,-516,-512,-510,-511,-859,-338,-29992]} 1. d4 {[%emt 0:0:0]} Nf6 {[%emt 0:0:0]} 2. c4 {[%emt 0:0:0]} e6 {[%emt 0:0:0]} 3. Nc3 {[%emt 0:0:0]} Bb4 {[%emt 0:0:0]} 4. Qc2 {[%emt 0:0:0]} d5 {[%emt 0:0:0]} 5. Nf3 {[%emt 0:0:0]} O-O {[%emt 0:0:0]} 6. e3 {[%emt 0:0:0]} b6 {[%emt 0:0:0]} 7. Be2 {[%emt 0:0:0] E34: Nimzo-Indian: Classical: 4...d5.} Bb7 {[%emt 0:0:0]} 8. cxd5 {[%emt 0:0:0]} exd5 {[%emt 0:0:0]} 9. a3 {[%emt 0:0:0] The position is equal.} Be7 {[%emt 0:0:0]} 10. b4 {[%emt 0:0:0]} Nbd7 {[%emt 0:1:51]} 11. Rb1 $146 {[%emt 0:2:30]} ({Predecessor:} 11. O-O a6 12. Qb3 Rb8 13. Rd1 Bd6 14. a4 c5 15. bxc5 bxc5 16. dxc5 Nxc5 17. Qa2 Qc7 {½-½ Ranaldi,L (2283)-Haug,J (2401) Hersonissos op 2nd 2018 (7)} )c6 {[%emt 0:2:1]} 12. O-O {[%emt 0:2:15]} Bd6 {[%emt 0:12:44]} 13. Nh4 {[%emt 0:8:7]} (13. Bd3 $11 )Re8 {[%emt 0:0:0]} 14. Nf5 {[%emt 0:10:1]} Bf8 {[%emt 0:0:0]} 15. f3 {[%emt 0:0:41]} g6 {[%emt 0:3:11]} 16. Ng3 {[%emt 0:0:36]} Rc8 {[%emt 0:1:54]} 17. Bd2 {[%emt 0:6:30]} Bg7 {[%emt 0:4:34]} 18. e4 {[%emt 0:7:41]} c5 {[%emt 0:32:4]} 19. bxc5 {[%emt 0:0:36]} bxc5 {[%emt 0:1:3]} 20. e5 {[%emt 0:3:52][%cal Ye5f6]} (20. Rxb7 $6 cxd4 21. Rd1 dxc3 $17 )cxd4 {[%emt 0:0:39]} 21. exf6 {[%emt 0:0:38]} dxc3 {[%emt 0:0:40]} 22. Bc1 {[%emt 0:4:26]} Qxf6 {[%emt 0:7:2]} 23. Rxb7 {[%emt 0:0:38]} Nc5 {[%emt 0:0:35]} 24. Rb4 {[%emt 0:5:5]} a5 {[%emt 0:7:34]} 25. Rb5 {[%emt 0:4:9][%cal Yf1d1]} h5 {[%emt 0:1:16][%cal Yh7h5,Yh5h4][%mdl 32]} 26. Rd1 {[%emt 0:3:28]} h4 {[%emt 0:6:53]} 27. Nh1 {[%emt 0:4:28][%cal Yh1f2]} (27. Rxd5 hxg3 28. Qd1 (28. Rbxc5 $2 {loses.} Rxc5 $19 )Ne4 $19 )Ne6 {[%emt 0:1:5]} 28. Rbxd5 {[%emt 0:4:35]} Nd4 $36 {[%emt 0:0:38][%mdl 2048] Against Bb5. Black is pushing.} 29. R5xd4 {[%emt 0:5:25]} (29. R1xd4 Qb6 30. Kf1 Bxd4 $17 )Qb6 $1 {[%emt 0:0:36]} 30. Kf1 {[%emt 0:1:1]} Bxd4 {[%emt 0:0:35]} 31. a4 {[%emt 0:0:40]} Red8 {[%emt 0:6:1]} 32. Bb5 $2 {[%emt 0:3:39] [#]} (32. h3 $11 {and White stays safe.} )Be3 $19 {[%emt 0:2:27]} 33. Bd3 {[%emt 0:1:56] White is weak on the dark squares} Bxc1 {[%emt 0:9:41]} 34. Rxc1 {[%emt 0:0:39]} Rd4 {[%emt 0:1:11] Black has more active pieces.} (34... Qe3 $17 35. Nf2 h3 )35. Nf2 $11 {[%emt 0:1:24]} Rb4 {[%emt 0:1:12]} 36. Nd1 {[%emt 0:4:5][%cal Yh2h3] Wards off Rb2} Qd6 {[%emt 0:1:56]} 37. h3 {[%emt 0:2:3]} Kg7 {[%emt 0:7:22]} 38. Nxc3 $2 {[%emt 0:8:10][%mdl 8192] [#]} (38. Ra1 $1 $15 )Rb3 $19 {[%emt 0:0:0]} 39. Qd2 {[%emt 0:11:13]} Qb4 {[%emt 0:0:24]} 40. Bxg6 {[%emt 0:0:0]} (40. Bb5 $142 )Rbxc3 $2 {[%emt 0:0:0]} (40... Kxg6 41. Rd1 Rbxc3 42. Qd6+ Qxd6 43. Rxd6+ Kg7 )41. Bc2 $2 {[%emt 0:25:55] Weighted Error Value: White=0.45/Black=0.35   Loses game:     	White=1     	---        Mistake:       	White=4     	Black=2      Inaccurate:     	White=2     	Black=3      OK:         	White=6     	Black=5      Strong:       	---       	Black=1} (41. Rxc3 $19 Qxc3 42. Qxc3+ Rxc3 43. Bf5 )0-1

[Event "88th Tata Steel Masters 2026"]
[White "Niemann,Hans Moke"]
[Black "Van Foreest,Jorden"]
[Site "Wijk aan Zee"]
[Round "8.3"]
[Annotator "TA"]
[Result "1/2-1/2"]
[Date "2026.01.25"]
[WhiteElo "2725"]
[BlackElo "2703"]
[PlyCount "100"]
[TimeControl "60"]

{[%evp 22,100,30,0,4,6,7,0,0,-2,-1,-18,78,70,86,77,74,82,89,86,105,113,116,114,117,110,117,114,97,107,121,108,112,107,120,122,118,125,130,131,120,113,105,31,23,40,26,26,35,55,53,29,28,0,0,0,0,0,0,0,0,0,0,0,0,0,0,0,0,0,0,0,0,0,0,0,0,0,0,0,0]} 1. e4 {[%emt 0:0:0]} c5 {[%emt 0:0:0]} 2. Nf3 {[%emt 0:0:0]} e6 {[%emt 0:0:0]} 3. d4 {[%emt 0:0:0]} cxd4 {[%emt 0:0:0]} 4. Nxd4 {[%emt 0:0:0]} Nc6 {[%emt 0:0:0]} 5. Nc3 {[%emt 0:0:0]} Nf6 {[%emt 0:0:0]} 6. Ndb5 {[%emt 0:0:0]} d6 {[%emt 0:0:0]} 7. Bf4 {[%emt 0:0:0]} e5 {[%emt 0:0:0]} 8. Bg5 {[%emt 0:0:0]} a6 {[%emt 0:0:0]} 9. Na3 {[%emt 0:0:0]} b5 {[%emt 0:0:0][%cal Yb7b5,Yb5b4][%mdl 32]} 10. Nd5 {[%emt 0:0:0]} Be7 {[%emt 0:0:0]} 11. Bxf6 {[%emt 0:0:0]} Bxf6 {[%emt 0:0:0]} 12. c4 {[%emt 0:0:0]} b4 {[%emt 0:0:0] B33: Sicilian: Pelikan and Sveshnikov Variations.} 13. Nc2 {[%emt 0:0:0]} O-O {[%emt 0:0:0]} 14. Qf3 {[%emt 0:0:0]} Bg5 {[%emt 0:0:0]} 15. h4 {[%emt 0:0:0]} Bh6 {[%emt 0:0:0]} 16. g4 {[%emt 0:0:0] [#]} Bf4 {[%emt 0:0:0]} 17. Be2 $16 {[%emt 0:3:58]} (17. Ndxb4 Nxb4 18. Nxb4 Qb6 $17 )Be6 {[%emt 0:5:58]} 18. Nxf4 {[%emt 0:6:48]} (18. Ncxb4 Nd4 19. Qc3 a5 $17 )(18. Ndxb4 $6 Nxb4 19. Nxb4 Qb6 $15 )exf4 {[%emt 0:0:38]} 19. Qxf4 {[%emt 0:2:2]} Ne5 {[%emt 0:3:52][%cal Yc6e5,Ye5g6,Yg6f4][%mdl 32]} 20. Ne3 {[%emt 0:21:37]} (20. Nxb4 Rb8 21. a3 a5 $17 (21... Bxc4 22. Bxc4 Nxc4 23. Nc6 $11 ))Ng6 {[%emt 0:20:6]} 21. Qg3 $146 {[%emt 0:3:25]} ({Predecessor:} 21. Qf3 Qa5 22. h5 Ne5 23. Qf4 b3+ 24. Kf1 f6 25. Nf5 bxa2 26. Rh3 Rab8 27. Qc1 Nc6 28. Ra3 {½-½ Samani,Y (2326)-Schekachikhin,M (2359) SRB-chT 2nd League 2022 (1.2)} )Qf6 {[%emt 0:1:13]} 22. O-O-O {[%emt 0:1:33]} (22. Qxd6 Qxb2 23. Rd1 Rad8 (23... Qxa2 24. f4 $11 )24. Qxd8 Rxd8 25. Rxd8+ Nf8 )Nf4 {[%emt 0:0:37]} 23. Rhe1 {[%emt 0:1:9]} Qe5 {[%emt 0:2:51]} 24. Bf1 {[%emt 0:2:5]} Rfe8 {[%emt 0:3:18]} 25. Kb1 {[%emt 0:4:35]} a5 {[%emt 0:0:40][%cal Ya6a5,Ya5a4,Ya4a3][%mdl 32]} 26. f3 {[%emt 0:4:29]} a4 {[%emt 0:2:42]} 27. Qh2 {[%emt 0:5:20]} h5 {[%emt 0:7:59]} 28. gxh5 {[%emt 0:2:20]} a3 {[%emt 0:6:18]} 29. b3 {[%emt 0:0:53]} f5 {[%emt 0:0:40]} 30. Qd2 {[%emt 0:16:54][%csl Yb4,Yd6]} fxe4 {[%emt 0:0:48]} 31. fxe4 {[%emt 0:0:37]} Qxe4+ {[%emt 0:10:17] [#]} 32. Nc2 {[%emt 0:0:44]} (32. Kc1 $1 $16 Qf3 (32... Nxh5 33. Bg2 $16 )33. h6 )Qf5 $14 {[%emt 0:0:39]} 33. Qd4 {[%emt 0:12:50] aiming for h6.} (33. Qxb4 $2 Qf6 34. Nd4 (34. Qxd6 Qb2# )(34. Nxa3 $2 Bf5+ $19 )Bf5+ 35. Kc1 Nd3+ 36. Rxd3 (36. Bxd3 Qxd4 37. Rxe8+ Rxe8 38. Re1 Qb2+ 39. Kd1 Bg4+ )Bxd3 37. Bxd3 Qxd4 38. Rxe8+ Rxe8 $19 )Bf7 {[%emt 0:3:56]} 34. h6 {[%emt 0:2:44][%csl Gh6][%cal Rd4g7]} (34. Qxd6 $2 Bxh5 35. Bd3 Rxe1 36. Nxe1 Nxd3 37. Qxd3 Qg4 $19 )Re5 {[%emt 0:3:7]} 35. Rxe5 {[%emt 0:2:21]} (35. Qxd6 $2 Rxe1 36. Rxe1 Bg6 $19 )dxe5 {[%emt 0:0:34]} 36. Qd7 {[%emt 0:1:53]} Qf6 {[%emt 0:4:44]} 37. hxg7 {[%emt 0:2:18]} Ne6 {[%emt 0:2:55] The position is equal.} 38. Qb7 {[%emt 0:8:37]} (38. Nxb4 $2 Rd8 $19 )Rd8 {[%emt 0:2:19]} 39. Rxd8+ {[%emt 0:0:36]} Nxd8 {[%emt 0:6:18]} 40. Qg2 {[%emt 0:0:0]} (40. Qxb4 $2 {loses.} Qxf1+ 41. Qe1 Qxe1+ 42. Nxe1 Nc6 $19 )Nc6 {[%emt 0:0:0]} 41. c5 {[%emt 0:23:15]} e4 {[%emt 0:33:2][%csl Ga3][%cal Rf6b2]} 42. Ne3 {[%emt 0:0:11]} Qd4 {[%emt 0:7:47]} 43. Qf2 {[%emt 0:0:21]} Ne5 {[%emt 0:2:16] Repels Bc4} 44. c6 {[%emt 0:0:19]} Nxc6 {[%emt 0:0:11]} 45. Bc4 {[%emt 0:1:56] Really sharp!} Ne5 {[%emt 0:1:43]} 46. Bxf7+ {[%emt 0:0:16]} Nxf7 {[%emt 0:0:3]} 47. h5 {[%emt 0:2:9]} Qd3+ {[%emt 0:1:57]} 48. Kc1 {[%emt 0:0:32]} Qc3+ {[%emt 0:2:53]} 49. Kb1 {[%emt 0:0:19]} Qd3+ {[%emt 0:0:21]} 50. Kc1 {[%emt 0:0:10]} Qc3+ {[%emt 0:0:8] Weighted Error Value: White=0.04 (flawless) /Black=0.04 (flawless)   Mistake:       	White=1     	Black=1      Inaccurate:     	White=1     	---        OK:         	White=13    	Black=8      Best:        	White=2     	---} 1/2-1/2

[Event "88th Tata Steel Masters 2026"]
[White "Keymer,Vincent"]
[Black "Sindarov,Javokhir"]
[Site "Wijk aan Zee"]
[Round "8.4"]
[Annotator "TA"]
[Result "1/2-1/2"]
[Date "2026.01.25"]
[WhiteElo "2776"]
[BlackElo "2726"]
[PlyCount "95"]
[TimeControl "60"]

{[%evp 12,95,25,22,34,0,0,0,0,0,11,27,26,-58,60,64,64,68,77,76,62,27,26,10,18,9,9,9,9,9,9,19,14,5,5,6,6,4,11,2,35,29,33,33,34,34,44,30,37,41,30,15,85,31,45,45,34,18,19,18,18,18,25,0,26,27,33,33,33,29,41,31,45,52,43,27,33,31,46,36,24,0,0,0,0,0]} 1. d4 {[%emt 0:0:0]} Nf6 {[%emt 0:0:0]} 2. Nf3 {[%emt 0:0:0]} g6 {[%emt 0:0:0]} 3. g3 {[%emt 0:0:0]} c5 {[%emt 0:0:0]} 4. Bg2 {[%emt 0:0:0]} cxd4 {[%emt 0:0:0]} 5. Nxd4 {[%emt 0:0:0]} Bg7 {[%emt 0:0:0]} 6. c4 {[%emt 0:0:0]} Nc6 {[%emt 0:0:0]} 7. Nc3 {[%emt 0:0:0]} h5 {[%emt 0:0:0] A38: Symmetrical English vs ...g6: 4 Bg2 Bg7 5 Nf3 Nf6.} 8. O-O {[%emt 0:1:53]} h4 {[%emt 0:0:0]} 9. Bf4 {[%emt 0:0:50]} hxg3 {[%emt 0:4:0]} 10. hxg3 {[%emt 0:1:59]} Nh5 $146 {[%emt 0:0:36]} ({Predecessor:} 10... Qa5 11. e3 g5 12. Nb3 Qf5 13. Bc7 d6 14. c5 Qh7 15. Re1 Qh2+ 16. Kf1 Bg4 17. Qd3 a6 18. cxd6 Ne5 19. Qd5 Nxd5 {0-1 Jumabayev,R (2560)-Firouzja,A (2754) Titled Tuesday intern op 30th Sep blitz 2025 (8)} )11. Be3 {[%emt 0:3:30]} Nf6 $1 {[%emt 0:0:49]} 12. Nd5 {[%emt 0:12:6]} (12. Nxc6 $11 dxc6 13. Qa4 (13. Qxd8+ Kxd8 14. Rfd1+ Ke8 $11 ))O-O {[%emt 0:16:2]} (12... Ng4 $15 13. Nb5 Be5 )13. Nxf6+ $14 {[%emt 0:18:22]} Bxf6 {[%emt 0:0:44]} 14. Qd2 {[%emt 0:1:6]} Ne5 {[%emt 0:7:17]} 15. Rac1 {[%emt 0:1:35] White is more active.} d6 {[%emt 0:0:55]} 16. Rfd1 {[%emt 0:5:2]} Ng4 {[%emt 0:6:56]} 17. Bg5 {[%emt 0:26:44]} e5 {[%emt 0:1:33][%csl Yd4,Yg5]} 18. Bxf6 {[%emt 0:0:34]} Qxf6 {[%emt 0:0:36]} 19. f3 {[%emt 0:0:36] Successful Defense White} exd4 {[%emt 0:1:14]} 20. fxg4 {[%emt 0:0:32]} Bxg4 {[%emt 0:5:37]} 21. Qxd4 {[%emt 0:0:34]} Qg5 {[%emt 0:0:37]} 22. Kf2 {[%emt 0:6:6]} ({Reject} 22. Qxd6 Qe3+ 23. Kh2 Rae8 $15 (23... Qxe2 24. Rd2 $11 )(23... Bxe2 24. Qd2 $11 ))Rfe8 {[%emt 0:8:4][%cal Yf8e8,Ye8e6,Ye6f6][%mdl 32]} 23. Bf3 {[%emt 0:0:34]} Bxf3 {[%emt 0:1:4]} 24. exf3 $40 {[%emt 0:0:31][%mdl 128] White is up to no good.} b6 {[%emt 0:10:32]} 25. Rd2 {[%emt 0:7:51]} Re6 {[%emt 0:7:42]} 26. Rh1 {[%emt 0:1:7] Prevents Qh6.} Qe5 {[%emt 0:0:40] Prevents Rh8+.} 27. Qxe5 {[%emt 0:4:2]} dxe5 {[%emt 0:0:47][%mdl 4096] Endgame KRR-KRR} 28. Ke3 {[%emt 0:0:34]} Kg7 {[%emt 0:2:33][%cal Ye5e4]} 29. g4 {[%emt 0:1:27]} Rf6 {[%emt 0:3:29]} 30. b3 {[%emt 0:5:48]} Rf4 {[%emt 0:2:50]} 31. Rd7 {[%emt 0:2:55]} Re8 {[%emt 0:13:56] Prevents Re7} (31... g5 $11 )32. g5 {[%emt 0:0:34]} (32. Rxa7 $16 g5 33. Rh5 )Rf5 {[%emt 0:1:49]} 33. Rg1 {[%emt 0:0:54]} a5 {[%emt 0:3:2]} 34. Rd6 {[%emt 0:0:51]} Rb8 {[%emt 0:0:38]} 35. a4 {[%emt 0:2:36]} Kf8 {[%emt 0:1:12]} 36. Rd5 {[%emt 0:0:41]} Rc8 {[%emt 0:0:58]} 37. Rd6 {[%emt 0:0:35]} Rb8 {[%emt 0:0:33]} 38. Rd7 {[%emt 0:2:58]} Rc8 {[%emt 0:1:16]} 39. Rgd1 {[%emt 0:1:34]} Rxg5 {[%emt 0:1:8]} 40. R1d6 {[%emt 0:0:0]} Kg7 {[%emt 0:0:0] Dodges Rf6} 41. Rxb6 {[%emt 0:20:11]} Rf5 {[%emt 0:29:59]} 42. Rb5 {[%emt 0:10:19]} Rh8 {[%emt 0:0:13]} 43. Rd2 {[%emt 0:2:44][%cal Yc4c5] Black must now prevent c5!.} Rh3 {[%emt 0:1:15]} 44. Rf2 {[%emt 0:0:3]} g5 {[%emt 0:0:28]} 45. Ke2 {[%emt 0:2:19]} Rh1 {[%emt 0:3:26]} 46. Ke3 {[%emt 0:5:36]} Re1+ {[%emt 0:1:22]} 47. Kd2 {[%emt 0:0:20]} Ra1 {[%emt 0:0:46]} 48. Ke3 {[%emt 0:0:56] Weighted Error Value: White=0.09 (flawless) /Black=0.11 (very precise)   Mistake:       	White=2     	Black=2      Inaccurate:     	White=2     	Black=1      OK:         	White=7     	Black=8      Strong:       	---       	Black=1} (48. Rxa5 g4 49. Ke2 Kf6 $17 (49... g3 50. Rf1 $15 ))1/2-1/2